Cogmind - Beta 13 @@@ ROGUE MODE // 2024.07.13 @ 19:18:35 Player: koksu120 Result: Destroyed by H-61 Shepherd with Heavy Assault Cannon Performance ------------- Evolutions (2) 1000 Regions Visited (6) 1200 Robots Destroyed (39) 195 Value Destroyed (1003) 1003 Prototype IDs (2) 40 Alien Tech Used (0) 0 Bonus (300) 300 TOTAL SCORE: 3738 Bonus ------- Aligned with FarCom 300 Cogmind --------- Core Integrity 0/550 Matter 295/300 Energy 74/100 System Corruption 2% Temperature Cool (0) Movement Core (100) Ox1 Location -8/Materials Parts ------- > --- POWER (2) -------- (None) > --- PROPULSION (3) --- (None) > --- UTILITY (4) ------ Visual Processing Unit Signal Interpreter ECM Suite > --- WEAPON (2) ------- Scythe > --- INVENTORY (5) ---- Improved Light Armor Plating Scythe Peak State ------------ > --- POWER ------------ Light Nuclear Core Light Nuclear Core > --- PROPULSION ------- Light Treads Improved Treads Advanced Treads > --- UTILITY ---------- Visual Processing Unit Signal Interpreter ECM Suite Improved Weapon Shielding > --- WEAPON ----------- Gatling Laser Scythe > --- INVENTORY -------- Hardened Medium Armor Plating Improved Light Armor Plating Concussive RPG Scythe [Rating: 27] Favorites ----------- Power Light Nuclear Core Engine Ion Engine Power Core Light Nuclear Core Propulsion Flight Unit Treads Light Treads Leg Aluminum Leg Hover Unit Hover Unit Flight Unit Flight Unit Utility Signal Interpreter Device ECM Suite Storage Small Storage Unit Processor Signal Interpreter Protection Improved Weapon Shielding Weapon Scythe Energy Gun EM Shotgun Ballistic Gun Light Assault Rifle Launcher Concussive RPG Slashing Weapon Scythe Build | -11 -10 -9 -9 -9 -8 -8 ------- Run | Yrd Mat Mat Min Exi Min Mat Slots Evolved 4 | . . 2 . . . 2 Power 1 | . . . . . . 1 Propulsion 1 | . . 1 . . . . Utility 2 | . . 1 . . . 1 Weapon . | . . . . . . . Parts Attached 64 | . 19 4 11 . . 30 Power 13 | . 4 . 1 . . 8 Engine 9 | . 4 . 1 . . 4 Core 4 | . . . . . . 4 Reactor . | . . . . . . . Propulsion 24 | . 9 . 6 . . 9 Treads 6 | . . . . . . 6 Leg . | . . . . . . . Wheel . | . . . . . . . Hover 4 | . 4 . . . . . Flight 14 | . 5 . 6 . . 3 Utility 11 | . 3 3 . . . 5 Device 5 | . 1 2 . . . 2 Storage . | . . . . . . . Processor 3 | . 2 1 . . . . Hackware . | . . . . . . . Protection 3 | . . . . . . 3 Artifact . | . . . . . . . Weapon 16 | . 3 1 4 . . 8 Energy Gun 7 | . . 1 3 . . 3 Energy Cannon . | . . . . . . . Ballistic Gun 5 | . 3 . . . . 2 Ballistic Cannon . | . . . . . . . Launcher 1 | . . . . . . 1 Special Weapon . | . . . . . . . Impact Weapon . | . . . . . . . Slashing Weapon 3 | . . . 1 . . 2 Piercing Weapon . | . . . . . . . Special Melee Weapon . | . . . . . . . Unidentified Prototypes 2 | . . . . . . 2 Corrupted Parts 1 | . . . . . . 1 System Corruption 1 | . . . . . . 1 Parts Lost 18 | . . . . . . 18 Power 6 | . . . . . . 6 Propulsion 7 | . . . . . . 7 Utility 2 | . . . . . . 2 Weapon 3 | . . . . . . 3 Highest Loss Streak 7 | . . . . . . 7 To Critical Strikes 1 | . . . . . . 1 Average Slot Usage (%) 94 | . 89 77 99 100 100 93 Engine 8 | . 13 11 11 11 11 5 Core 6 | . . . . . . 10 Treads 14 | . . . . . . 23 Flight 12 | . 19 22 32 33 33 2 Device 9 | . 4 19 11 11 11 9 Processor 18 | . 10 13 22 22 22 18 Protection 3 | . . . . . . 6 Energy Gun 8 | . 4 . 11 11 11 8 Ballistic Gun 3 | . 23 11 6 . . 1 Slashing Weapon 7 | . . . 4 11 11 8 Naked Turns . | . . . . . . . Heaviest Build 26 | 14 14 11 12 12 12 26 Greatest Support 65 | 20 20 8 12 12 12 65 Greatest Overweight (x) 2 | . 1 1 1 . . 2 Average Overweight (x) . | . . . . . . . Largest Inventory Capacity 8 | 8 8 5 5 5 5 5 Average Capacity 5 | 8 5 5 5 5 5 5 Most Carried 6 | 6 5 5 5 5 5 5 Average Carried 4 | 6 3 4 4 5 5 4 Final Capacity 8 | 8 5 5 5 5 5 5 Final Carried 6 | 6 5 5 5 5 5 2 Class Distribution -------------------- 35% | Mutant 33% | Scavenger-Scout 18% | Scavenger-Mutant 11% | Scavenger-Assassin Dominant Class ---------------- Scavenger-Mutant | -10/Materials Scavenger-Mutant | -9/Materials Scavenger-Scout | -9/Mines Scavenger-Scout | -9/Exiles Scavenger-Scout | -8/Mines Mutant | -8/Materials Resources | -11 -10 -9 -9 -9 -8 -8 ----------- Run | Yrd Mat Mat Min Exi Min Mat Matter Collected 997 | 200 202 . 77 . . 518 Remotely . | . . . . . . . Salvage Created 1397 | . 242 . 106 . . 1049 Parts 95 | . 22 . 14 . . 59 Haulers Intercepted . | . . . . . . . Recyclers Shooed . | . . . . . . . Parts Field Recycled . | . . . . . . . Retrieved Matter . | . . . . . . . Parts Self-Destructed . | . . . . . . . Prevented . | . . . . . . . Kills | -11 -10 -9 -9 -9 -8 -8 ------- Run | Yrd Mat Mat Min Exi Min Mat Combat Hostiles Destroyed 34 | . 7 . 6 . . 21 Melee 3 | . . . . . . 3 Guns 30 | . 7 . 6 . . 17 AOE 1 | . . . . . . 1 Classes Destroyed 9 | . 3 . . . . 6 Worker 1 | . . . . . . 1 Builder 1 | . . . . . . 1 Recycler 2 | . . . . . . 2 Watcher 1 | . 1 . . . . . Swarmer 16 | . 3 . 6 . . 7 Grunt 11 | . 4 . . . . 7 Brawler 2 | . . . . . . 2 Sentry 3 | . . . . . . 3 Specialist 2 | . . . . . . 2 Best Kill Streak 6 | . 3 . 6 . . 5 Combat Bots Only 6 | . 3 . 6 . . 4 Max Kills in Single Turn 2 | . 2 . 2 . . 2 Gunslinging 1 | . 1 . 1 . . . Exploded 1 | . . . . . . 1 Melee 1 | . . . . . . 1 Uniques/NPCs Destroyed . | . . . . . . . Combat | -11 -10 -9 -9 -9 -8 -8 -------- Run | Yrd Mat Mat Min Exi Min Mat Hostile Shots Fired 247 | . 49 . 24 . . 174 Missed 77 | . 22 . 11 . . 44 Damage Taken 2604 | . 250 . 111 . . 2243 Core 663 | . 73 . 26 . . 564 Absorbed by Shields . | . . . . . . . Redirected to Shielding 66 | . . . . . . 66 Core Remaining (%) 87 | 100 70 . . . 93 . Volleys Fired 138 | . 28 . 13 1 . 96 Largest 2 | . 2 . 2 1 . 2 Hottest 80 | . 70 . 65 80 . 80 Shots Fired 174 | . 56 . 19 1 . 98 Gun 173 | . 56 . 19 1 . 97 Cannon . | . . . . . . . Launcher 1 | . . . . . . 1 Special . | . . . . . . . Kinetic 95 | . 49 . 13 . . 33 Thermal 25 | . 7 . . 1 . 17 Explosive 1 | . . . . . . 1 Electromagnetic 53 | . . . 6 . . 47 Robot Hit Streak 13 | . 8 . 6 . . 13 Robot Miss Streak 4 | . 4 . 2 . . 3 Penetration Max . | . . . . . . . Secondary Targets 3 | . 2 . 1 . . . Max Gunslinging Chain 1 | . 1 . 1 . . . Shots Hit Robots 140 | . 35 . 14 . . 91 Core Hits 80 | . 17 . 7 . . 56 Critical Kills . | . . . . . . . Critical Parts Destroyed . | . . . . . . . Critical Strikes 2 | . . . . . . 2 Sever 2 | . . . . . . 2 Melee Attacks 16 | . . . . . . 16 Impact . | . . . . . . . Slashing 16 | . . . . . . 16 Piercing . | . . . . . . . Sneak Attacks 1 | . . . . . . 1 Combat Hostiles . | . . . . . . . Follow-up Attacks . | . . . . . . . Damage Inflicted 2374 | . 331 . 118 . . 1925 Guns 1861 | . 327 . 118 . . 1416 Cannons . | . . . . . . . Explosions 59 | . . . . . . 59 Melee 447 | . . . . . . 447 Ramming 7 | . 4 . . . . 3 Kinetic 736 | . 265 . 68 . . 403 Thermal 560 | . 62 . . . . 498 Explosive 22 | . . . . . . 22 Electromagnetic 602 | . . . 50 . . 552 Impact . | . . . . . . . Slashing 447 | . . . . . . 447 Piercing . | . . . . . . . Highest Corruption 2 | . . . . . . 2 Average Corruption 1 | . . . . . . 1 Corruption Purged . | . . . . . . . Corruption Blocked . | . . . . . . . Effects 21 | . . . . . . 21 Message Errors 6 | . . . . . . 6 Matter Fused 3 | . . . . . . 3 Heat Flow Errors 4 | . . . . . . 4 Energy Discharges 2 | . . . . . . 2 Data Loss (minor) 4 | . . . . . . 4 Misfires 1 | . . . . . . 1 Alerts 1 | . . . . . . 1 Overload Shots . | . . . . . . . Overflow Damage 27 | . . . . . . 27 Projectiles . | . . . . . . . Explosions . | . . . . . . . Melee 27 | . . . . . . 27 Knockbacks . | . . . . . . . Impact . | . . . . . . . Kinetic . | . . . . . . . Secondary . | . . . . . . . Self-Inflicted Damage 22 | . . . . . . 22 Shots 1 | . . . . . . 1 Rammed . | . . . . . . . Targets Rammed 2 | . 1 . . . . 1 Kicked 1 | . 1 . . . . . Crushed 1 | . . . . . . 1 Highest Temperature 512 | . 54 . 35 46 . 512 Average Temperature 82 | . 13 . 16 26 . 103 Received Heat Transfer 783 | . 54 . . . . 729 Effects 11 | . . . . . . 11 Shutdowns 4 | . . . . . . 4 Energy Bleed 1 | . . . . . . 1 Interference 6 | . . . . . . 6 Siege Activations . | . . . . . . . Robots Corrupted . | . . . . . . . Combat Hostiles . | . . . . . . . Parts Fried 2 | . . . . . . 2 Impact Corruptions . | . . . . . . . Robots Melted . | . . . . . . . Combat Hostiles . | . . . . . . . Parts Melted 4 | . . . . . . 4 Heat Transferred 1285 | . 185 . . . . 1100 Parts Sabotaged . | . . . . . . . Parts Stolen . | . . . . . . . Parts Stripped . | . . . . . . . Power Chain Reactions 1 | . . . . . . 1 Alert | -11 -10 -9 -9 -9 -8 -8 ------- Run | Yrd Mat Mat Min Exi Min Mat Peak Influence 225 | . 167 70 167 . . 225 Initial 70 | . . 70 27 . . . Average 83 | . 87 70 151 . . 84 Maximum Alert Level 1 | . . . . . . 1 Low Security (%) 97 | 100 100 100 100 . 100 95 Level 1 2 | . . . . . . 4 Level 2 . | . . . . . . . Level 3 . | . . . . . . . Level 4 . | . . . . . . . Level 5 . | . . . . . . . High Security . | . . . . . . . Max Security . | . . . . . . . Squads Dispatched 7 | . 1 1 . . . 5 Investigation 1 | . . . . . . 1 Extermination . | . . . . . . . Reinforcement 6 | . 1 1 . . . 4 Assault . | . . . . . . . Garrison . | . . . . . . . Intercept . | . . . . . . . Searches Triggered . | . . . . . . . Construction Impeded . | . . . . . . . Haulers Reinforced . | . . . . . . . Active Scanning Responses . | . . . . . . . Cargo Convoy Interrupts . | . . . . . . . Stealth | -11 -10 -9 -9 -9 -8 -8 --------- Run | Yrd Mat Mat Min Exi Min Mat Distress Signals 2 | . . . . . . 2 Communications Jammed . | . . . . . . . Distress Signals . | . . . . . . . Times Spotted 62 | . 13 . 6 . . 43 Peak Tracking Total 6 | . 5 . 4 . . 6 Tactical Retreats 6 | . 1 . . . . 5 Traps | -11 -10 -9 -9 -9 -8 -8 ------- Run | Yrd Mat Mat Min Exi Min Mat Traps Triggered 1 | . 1 . . . . . Indirectly . | . . . . . . . Trap Hack Attempts . | . . . . . . . Triggered . | . . . . . . . Disarmed . | . . . . . . . Reprogrammed . | . . . . . . . Reused . | . . . . . . . Traps Extracted . | . . . . . . . Installed . | . . . . . . . Triggered . | . . . . . . . Machines | -11 -10 -9 -9 -9 -8 -8 ---------- Run | Yrd Mat Mat Min Exi Min Mat Machines Disabled . | . . . . . . . Max in Single Turn . | . . . . . . . Machines Repaired . | . . . . . . . Machines Dismantled . | . . . . . . . Machines Sabotaged . | . . . . . . . Overloaded Fab Kills . | . . . . . . . Hacking | -11 -10 -9 -9 -9 -8 -8 --------- Run | Yrd Mat Mat Min Exi Min Mat Machines Accessed 11 | . 1 . 1 4 . 5 Terminals 5 | . 1 . . . . 4 Fabricators . | . . . . . . . Repair Stations . | . . . . . . . Recycling Units . | . . . . . . . Scanalyzers 1 | . . . . . . 1 Garrison Access . | . . . . . . . Total Hacks 66 | . 1 . 1 49 . 15 Successful 63 | . 1 . 1 49 . 12 Failed 3 | . . . . . . 3 Catastrophic 1 | . . . . . . 1 Database Lockouts . | . . . . . . . Manual 2 | . . . . 2 . . Terminals 12 | . 1 . . . . 11 Fabricators . | . . . . . . . Repair Stations . | . . . . . . . Recycling Units . | . . . . . . . Scanalyzers 4 | . . . . . . 4 Garrison Access . | . . . . . . . Terminal Hacks 59 | . 1 . 1 49 . 8 Record 49 | . . . . 49 . . Robot Analysis 1 | . . . . . . 1 Open Door 1 | . . . 1 . . . Alert Level 2 | . . . . . . 2 Unreport Threat 2 | . 1 . . . . 1 Investigation Status 1 | . . . . . . 1 Recall Investigation 1 | . . . . . . 1 Zone Layout 2 | . . . . . . 2 Fabricator Hacks . | . . . . . . . Repair Station Hacks . | . . . . . . . Recycling Unit Hacks . | . . . . . . . Scanalyzer 4 | . . . . . . 4 Insert Component 2 | . . . . . . 2 Analyze 2 | . . . . . . 2 Garrison Access Hacks . | . . . . . . . Unauthorized Hacks . | . . . . . . . Terminals . | . . . . . . . Fabricators . | . . . . . . . Repair Stations . | . . . . . . . Recycling Units . | . . . . . . . Scanalyzers . | . . . . . . . Garrison Access . | . . . . . . . Data Cores Recovered . | . . . . . . . Used . | . . . . . . . Hacking Detections 2 | . . . . . . 2 Full Trace Events 1 | . . . . . . 1 Feedback Events . | . . . . . . . Feedback Blocked . | . . . . . . . Robot Schematics Acquired . | . . . . . . . Robots Built . | . . . . . . . Authchips . | . . . . . . . Time . | . . . . . . . Total Robot Build Rating . | . . . . . . . Part Schematics Acquired 2 | . . . . . . 2 Parts Built . | . . . . . . . Authchips . | . . . . . . . Time . | . . . . . . . Total Part Build Rating . | . . . . . . . Parts Repaired . | . . . . . . . Time . | . . . . . . . Parts Recycled . | . . . . . . . Recycled Matter . | . . . . . . . Retrieved Matter . | . . . . . . . Retrieved Components . | . . . . . . . Parts Scanalyzed 2 | . . . . . . 2 Part Schematics Acquired 2 | . . . . . . 2 Parts Damaged . | . . . . . . . Bothacking | -11 -10 -9 -9 -9 -8 -8 ------------ Run | Yrd Mat Mat Min Exi Min Mat Used RIF Installer . | . . . . . . . Robots Hacked . | . . . . . . . Non-combat . | . . . . . . . Combat . | . . . . . . . Robot Hacks Applied . | . . . . . . . Relay Couplers Released . | . . . . . . . Fabnet Peak Effective % . | . . . . . . . Robots Rewired . | . . . . . . . Allies Hacked . | . . . . . . . Hacks Repelled . | . . . . . . . Allies | -11 -10 -9 -9 -9 -8 -8 -------- Run | Yrd Mat Mat Min Exi Min Mat Total Allies 2 | . . . 2 . . . Largest Group 2 | . . . 2 2 . . Highest-Rated Group 48 | . . . 48 48 . . Highest-Rated Ally 31 | . . . 31 31 . . Total Orders . | . . . . . . . Ally Attacks . | . . . . . . . Total Damage . | . . . . . . . Kills . | . . . . . . . Allies Corrupted . | . . . . . . . Allies Melted . | . . . . . . . Intel | -11 -10 -9 -9 -9 -8 -8 ------- Run | Yrd Mat Mat Min Exi Min Mat Robot Analysis Total 1 | . . . . . . 1 Derelict Logs Recovered . | . . . . . . . Drone Launches . | . . . . . . . Drone Recoveries . | . . . . . . . Exploration | -11 -10 -9 -9 -9 -8 -8 ------------- Run | Yrd Mat Mat Min Exi Min Mat Turns Passed 2919 | 8 303 41 167 477 162 1761 Spaces Moved 2797 | 7 373 72 226 1329 230 560 Core 6 | . 2 . . . . 4 Treads 478 | . . . . . . 478 Legs 48 | 7 41 . . . . . Wheels . | . . . . . . . Hover 7 | . 7 . . . . . Flight 2258 | . 323 72 226 1329 230 78 Fastest Speed 32 | 120 37 37 34 34 34 32 Average Speed 57 | 120 47 42 34 34 34 141 Slowest Speed 160 | 120 120 117 117 34 34 160 Overloaded Moves . | . . . . . . . Propulsion Burnouts . | . . . . . . . Robots Hopped 3 | . 2 . 1 . . . Cave-ins Triggered . | . . . . . . . Exploration Rate (%) 44 | 2 38 11 59 94 59 48 Regions Visited 6 Branch Regions 3 Pre-discovered Areas 1 | . . . . 1 . . Known Exits Taken 5 | . 1 1 1 1 1 . Unknown Exits Taken 1 | 1 . . . . . . Scrap Searched . | . . . . . . . Spaces Dug . | . . . . . . . Terrain Destroyed 12 | . . . . . . 12 Melee . | . . . . . . . Projectile . | . . . . . . . AOE 12 | . . . . . . 12 Terrain Rammed . | . . . . . . . Walls Destroyed . | . . . . . . . Machines Disabled . | . . . . . . . Actions | -11 -10 -9 -9 -9 -8 -8 --------- Run | Yrd Mat Mat Min Exi Min Mat Total 3934 | 6 455 83 300 1352 313 1425 Wait 825 | . 3 . 36 23 84 679 Move 2785 | 6 368 71 223 1328 229 560 Hop 3 | . 2 . 1 . . . Pick Up 42 | . 14 3 6 . . 19 Fast Attach 22 | . 7 2 3 . . 10 Attach 28 | . 10 2 4 . . 12 Detach . | . . . . . . . Swap 15 | . 2 . 4 . . 9 Drop 58 | . 20 5 10 . . 23 Fire 138 | . 28 . 13 1 . 96 Melee 16 | . . . . . . 16 Ram . | . . . . . . . Kick 1 | . 1 . . . . . Crush 1 | . . . . . . 1 Escape Stasis . | . . . . . . . Rewire . | . . . . . . . Trap . | . . . . . . . Miscellaneous . | . . . . . . . Route ------- -11/Scrapyard -10/Materials -9/Materials -9/Mines -9/Exiles (discovered 2 exits: *Min x2) -8/Mines -8/Materials (discovered 2 exits: [*Fac] / [Sto]) History --------- Turn | Location | Event 1 | -11/Scrapyard | Discovered new exit (range 3) 9 | -11/Scrapyard | Entered Materials 306 | -10/Materials | Discovered new exit (range 13) 312 | -10/Materials | Identified exit to Materials 312 | -10/Materials | Entered another Materials area 312 | -9/Materials | Evolved 2 slots: Propulsion x1, Utility x1 341 | -9/Materials | Discovered new exit (range 10) 353 | -9/Materials | Identified exit to Mines 353 | -9/Materials | Entered Mines 359 | -9/Mines | Met a Derelict bent on vengeance 422 | -9/Mines | Met a Derelict who couldn't figure out how to use a Trap Extractor 505 | -9/Mines | Deemed a non-threat by the Exiles lab entrance 506 | -9/Mines | Discovered new exit (range 5) 520 | -9/Mines | Identified exit to Exiles 520 | -9/Mines | Entered Exiles 520 | -9/Exiles | Accompanied by 2 allies 526 | -9/Exiles | Discovered new exit (range 15) 545 | -9/Exiles | Met 8R-AWN 550 | -9/Exiles | Led the pair of lost Derelicts to a safe place 563 | -9/Exiles | Met EX-HEX 577 | -9/Exiles | Met EX-DEC 586 | -9/Exiles | Learned location of Zion (-6) 600 | -9/Exiles | Visited The Gauntlet 608 | -9/Exiles | Build established: Scavenger-Scout 653 | -9/Exiles | Discovered new exit (range 14) 657 | -9/Exiles | Identified exit to Mines 806 | -9/Exiles | Met EX-BIN 851 | -9/Exiles | Aligned with FarCom system 851 | -9/Exiles | Given EX-Vault access code 997 | -9/Exiles | Entered Mines 1157 | -8/Mines | Discovered new exit (range 8) 1159 | -8/Mines | Identified exit to Materials 1159 | -8/Mines | Entered Materials 1159 | -8/Materials | Evolved 2 slots: Power x1, Utility x1 1341 | -8/Materials | Lost 6 parts (1p3n1u1w) 1615 | -8/Materials | Build established: Scavenger-Mutant 2031 | -8/Materials | Build established: Scavenger-Assassin 2363 | -8/Materials | Build established: Mutant 2694 | -8/Materials | Discovered new exit (range 16) 2887 | -8/Materials | Discovered new exit (range 11) 2891 | -8/Materials | Core integrity fell below 50% 2920 | -8/Materials | Core integrity fell below 20% 2920 | -8/Materials | Destroyed by H-61 Shepherd with Heavy Assault Cannon Last Messages --------------- area. 02898_ Lgt. Nuclear Core destroyed. 02900_ Adv. Treads destroyed. 02900_ Penetrated by Slug. 02903_ Hrd. Medium Armor Plating destroyed. 02904_ Penetrated by Slug. 02906_ Lgt. Treads destroyed. 02906_ Destroyed Targeting Computer. 02908_ Gatling Laser destroyed. 02908_ Knocked back. 02909_ Penetrated by Slug. 02914_ Y-45 Defender Lgt. Armor Plating severed. 02915_ Penetrated by Slug. 02915_ Lgt. Nuclear Core destroyed. 02916_ Penetrated by Slug. 02917_ Slug penetrates Wall. 02918_ Slug penetrates Purification Channel. 02919_ Penetrated by Slug. 02919_ Destroyed Heat Sink. 02920_ Penetrated by Slug. Map ----- +----------------------------------------------------+ | ????? ## # # # #???????????????????? | | ????? ## # # # #???????????????????? | | ????? # # # #####/########????????????????? | | ?????< + # + #??# #????????????????? | | ????? # # # #??# #????????????????? | | ????? ## # # #??# #????????????##### | | ????? ## # # #??# #????????????# | | ????? ## ######%#??# #????????????# | | ????? ###?######## #### ##????????????# | | ????? #?# #??#[[ T ##????????????# | | ????? #?# #??#[[ "#????????????#=[ | | ????? #?# #??#!! T#????????????# | | ????? #?# #??#!! "#????????????#// | | ????? ###?####!! ###???????????# | | ????? # ##!! o ""#???????????# ! | | ????? # T ###### T"#???????????##### | | ????? # #??#"" " " "" ""#???????????????? | | ????? # #??#"T "" """ ###???????????????? | | ????? # #??#"" #?????????????????? | | ????? # """ #??### =* #?????????????????? | | ????? # """ #????# !%! = #?????????????????? | | ????? # """ ########/#; #?????????????????? | | ????? # ## !%!# #?????????????????? | | ????? + ## !* # #?????????????????? | | ????? # ## !# % %% #####?????????????? | | ?????????????# # @ #?????????????????? | | ?????????????############Y; x !!/ ?????????? | | ??????????????????????? x !!/ #????????? | | ?????????????????????? """ H # !// #????????? | | ????????????????????? "R" # #????????? | | ???????????????????# ! " " # ]#????????? | | ???????????????????## # # #????????? | | ????????????????????# ] [ # # ! #????????? | | ????????????????????######## #? #????????? | | ???????????????????????????# #?########????????? | | ???????????????????????????? #?????????????????? | | ???????????????????????????? < #?????????????????? | | ???????????????????????????? #?????????????????? | | ????????????????????????????####?????????????????? | | ?????????????????????????????????????????????????? | | ?????????????????????????????????????????????????? | | ?????????????????????????????????????????????????? | | ?????????????????????????????????????????????????? | | ?????????????????????????????????????????????????? | | ?????????????????????????????????????????????????? | | | | | | | | | | | +----------------------------------------------------+ Best States ------------- Heat Dissipation 31 Energy Generation 23 Energy Capacity 310 Matter Stores 300 Matter Capacity 300 Sight Range 18 Robot Scan Range 14 Terrain Scan Range 14 Terrain Scan Density 10 ECM Strength 1 Armor Coverage 225 Weapon Shielding 66 Evasion (%) 63 Recoil Reduction 3 Item Schematics ----------------- Signal Interpreter | -8/Materials | Scanalyzed Scythe | -8/Materials | Scanalyzed Robot Schematics ------------------ None Fabricated ------------ Nothing Alien Tech Used ----------------- None Achievements -------------- None Challenges ------------ None Game ------ Seed SigixReflectiveMediator Manual? 0 Play Time 00:51:13 Cumulative 11.1 hours Start 2024.07.13 @ 15:09:25 End 2024.07.13 @ 19:18:35 Sessions 5 Manual Loads 0 Difficulty Rogue Special Mode None Game No. 21 Rogue 21 Adventurer 0 Explorer 0 Win Type - Total 0 Types 0/0/0/0/0/0/0/0/0 Lore% 15 Gallery% 22 Achievement% 14 Wizard Run 0 Options --------- Layout 0 ASCII 0 Keyboard 0 Movement Mouse Keybinds 0 Fullscreen 1 Font 18/X11Bold Map View 38x25 Zoom Use 95% Tactical HUD 1 Map Filters NONE Filters NONE Steam 1 RUN: 82c173d0-7837-4849-95a0-d3b190bb4ee8